Workbook

Sheet Worksheet
C1: Solve these quadratic equations using the quadratic formula, rounding your answers to 2 decimal places where necessary
A2: * indicates a question that could be solved by factorising instead
A3: Variables | C3: 1 | E3: 4 | F3: x | G3: ² | H3: – | I3: 5 | J3: x | K3: – | L3: 10 | M3: = | N3: 0 | P3: x | Q3: = | R3: 1.08 | S3: , | T3: 2.33 | U3: 185 | X3: 21 | Z3: 6 | AA3: x | AB3: ² | AC3: – | AD3: 22 | AE3: x | AF3: + | AG3: 13 | AH3: = | AI3: 0 | AK3: x | AL3: = | AM3: 0.74 | AN3: , | AO3: 2.93 | AP3: 172
A4: Number of questions (minimum 10, maximum 40) | B4: 40 | C4: 2 | E4: 2 | F4: y | G4: ² | H4: – | I4: 5 | J4: y | K4: – | L4: 2 | M4: = | N4: 0 | P4: y | Q4: = | R4: 0.35 | S4: , | T4: 2.85 | U4: 41 | X4: 22 | Z4: 3 | AA4: y | AB4: ² | AC4: – | AD4: 14 | AE4: y | AF4: + | AG4: 12 | AH4: = | AI4: 0 | AK4: y | AL4: = | AM4: 1.13 | AN4: , | AO4: 3.54 | AP4: 52
A5: Right-hand side equal to zero? | B5: TRUE | C5: 3 | E5: 5 | F5: b | G5: ² | H5: + | I5: 6 | J5: b | K5: – | L5: 1 | M5: = | N5: 0 | P5: b | Q5: = | R5: 1.35 | S5: , | T5: 0.15 | U5: 56 | X5: 23 | Z5: 4 | AA5: x | AB5: ² | AC5: + | AD5: 20 | AE5: x | AF5: + | AG5: 20 | AH5: = | AI5: 0 | AK5: x | AL5: = | AM5: 3.62 | AN5: , | AO5: 1.38 | AP5: 80
A6: Allow negative values of a? | B6: FALSE | C6: 4 | E6: 1 | F6: m | G6: ² | H6: + | I6: 9 | J6: m | K6: – | L6: 12 | M6: = | N6: 0 | P6: m | Q6: = | R6: 10.18 | S6: , | T6: 1.18 | U6: 129 | X6: 24 | Z6: 1 | AA6: r | AB6: ² | AC6: – | AD6: 4 | AE6: r | AF6: – | AG6: 16 | AH6: = | AI6: 0 | AK6: r | AL6: = | AM6: 2.47 | AN6: , | AO6: 6.47 | AP6: 80
A7: Approximate percentage of questions with a=1 | B7: 40 | C7: 5 | E7: 1 | F7: n | G7: ² | H7: + | I7: 6 | J7: n | K7: + | L7: 6 | M7: = | N7: 0 | P7: n | Q7: = | R7: 4.73 | S7: , | T7: 1.27 | U7: 12 | X7: 25 | Z7: 3 | AA7: z | AB7: ² | AC7: – | AD7: 10 | AE7: z | AF7: – | AG7: 3 | AH7: = | AI7: 0 | AK7: z | AL7: = | AM7: 0.28 | AN7: , | AO7: 3.61 | AP7: 136
A8: SHOW ANSWERS? | B8: =NOT(BD10) -> TRUE | C8: 6 | E8: 1 | F8: k | G8: ² | H8: + | I8: 10 | J8: k | K8: + | L8: 20 | M8: = | N8: 0 | P8: k | Q8: = | R8: 7.24 | S8: , | T8: 2.76 | U8: 20 | X8: 26 | Z8: 2 | AA8: x | AB8: ² | AC8: – | AD8: 20 | AE8: x | AF8: + | AG8: 14 | AH8: = | AI8: 0 | AK8: x | AL8: = | AM8: 0.76 | AN8: , | AO8: 9.24 | AP8: 288
A9: (when answers are shown, the number in bold in brackets is the discriminant) | C9: 7 | E9: 1 | F9: p | G9: ² | H9: + | I9: 9 | J9: p | K9: – | L9: 5 | M9: = | N9: 0 | P9: p | Q9: = | R9: 9.52 | S9: , | T9: 0.52 | U9: 101 | X9: 27 | Z9: 7 | AA9: z | AB9: ² | AC9: + | AD9: 1 | AE9: z | AF9: – | AG9: 9 | AH9: = | AI9: 0 | AK9: z | AL9: = | AM9: 1.21 | AN9: , | AO9: 1.06 | AP9: 253
C10: 8 | E10: 1 | F10: s | G10: ² | H10: – | I10: 10 | J10: s | K10: – | L10: 1 | M10: = | N10: 0 | P10: s | Q10: = | R10: 0.1 | S10: , | T10: 10.1 | U10: 104 | X10: 28 | Z10: 1 | AA10: r | AB10: ² | AC10: – | AD10: 5 | AE10: r | AF10: – | AG10: 12 | AH10: = | AI10: 0 | AK10: r | AL10: = | AM10: 1.77 | AN10: , | AO10: 6.77 | AP10: 73 | BD10: FALSE
C11: 9 | E11: 1 | F11: x | G11: ² | H11: + | I11: 9 | J11: x | K11: + | L11: 4 | M11: = | N11: 0 | P11: x | Q11: = | R11: 8.53 | S11: , | T11: 0.47 | U11: 65 | X11: 29 | Z11: 2 | AA11: y | AB11: ² | AC11: – | AD11: 6 | AE11: y | AF11: – | AG11: 13 | AH11: = | AI11: 0 | AK11: y | AL11: = | AM11: 1.46 | AN11: , | AO11: 4.46 | AP11: 140
C12: 10 | E12: 4 | F12: k | G12: ² | H12: + | I12: 1 | J12: k | K12: – | L12: 8 | M12: = | N12: 0 | P12: k | Q12: = | R12: 1.54 | S12: , | T12: 1.29 | U12: 129 | X12: 30 | Z12: 1 | AA12: n | AB12: ² | AC12: + | AD12: 18 | AE12: n | AF12: + | AG12: 17 | AH12: = | AI12: 0 | AK12: n | AL12: = | AM12: 17 | AN12: , | AO12: 1 | AP12: 256 | AQ12: *
C13: 11 | E13: 1 | F13: x | G13: ² | H13: – | I13: 2 | J13: x | K13: – | L13: 14 | M13: = | N13: 0 | P13: x | Q13: = | R13: 2.87 | S13: , | T13: 4.87 | U13: 60 | X13: 31 | Z13: 8 | AA13: s | AB13: ² | AC13: – | AD13: 4 | AE13: s | AF13: – | AG13: 4 | AH13: = | AI13: 0 | AK13: s | AL13: = | AM13: 0.5 | AN13: , | AO13: 1 | AP13: 144 | AQ13: *
C14: 12 | E14: 2 | F14: y | G14: ² | H14: + | I14: 14 | J14: y | K14: + | L14: 11 | M14: = | N14: 0 | P14: y | Q14: = | R14: 6.1 | S14: , | T14: 0.9 | U14: 108 | X14: 32 | Z14: 7 | AA14: y | AB14: ² | AC14: – | AD14: 3 | AE14: y | AF14: – | AG14: 14 | AH14: = | AI14: 0 | AK14: y | AL14: = | AM14: 1.22 | AN14: , | AO14: 1.64 | AP14: 401
C15: 13 | E15: 1 | F15: k | G15: ² | H15: – | I15: 7 | J15: k | K15: – | L15: 15 | M15: = | N15: 0 | P15: k | Q15: = | R15: 1.72 | S15: , | T15: 8.72 | U15: 109 | X15: 33 | Z15: 5 | AA15: z | AB15: ² | AC15: + | AD15: 15 | AE15: z | AF15: + | AG15: 3 | AH15: = | AI15: 0 | AK15: z | AL15: = | AM15: 2.78 | AN15: , | AO15: 0.22 | AP15: 165
C16: 14 | E16: 5 | F16: p | G16: ² | H16: + | I16: 6 | J16: p | K16: – | L16: 6 | M16: = | N16: 0 | P16: p | Q16: = | R16: 1.85 | S16: , | T16: 0.65 | U16: 156 | X16: 34 | Z16: 1 | AA16: q | AB16: ² | AC16: – | AD16: 13 | AE16: q | AF16: + | AG16: 16 | AH16: = | AI16: 0 | AK16: q | AL16: = | AM16: 1.38 | AN16: , | AO16: 11.62 | AP16: 105
C17: 15 | E17: 3 | F17: m | G17: ² | H17: – | I17: 14 | J17: m | K17: + | L17: 10 | M17: = | N17: 0 | P17: m | Q17: = | R17: 0.88 | S17: , | T17: 3.79 | U17: 76 | X17: 35 | Z17: 1 | AA17: k | AB17: ² | AC17: – | AD17: 17 | AE17: k | AF17: + | AG17: 13 | AH17: = | AI17: 0 | AK17: k | AL17: = | AM17: 0.8 | AN17: , | AO17: 16.2 | AP17: 237
C18: 16 | E18: 3 | F18: r | G18: ² | H18: – | I18: 20 | J18: r | K18: + | L18: 13 | M18: = | N18: 0 | P18: r | Q18: = | R18: 0.73 | S18: , | T18: 5.94 | U18: 244 | X18: 36 | Z18: 2 | AA18: x | AB18: ² | AC18: + | AD18: 15 | AE18: x | AF18: + | AG18: 16 | AH18: = | AI18: 0 | AK18: x | AL18: = | AM18: 6.21 | AN18: , | AO18: 1.29 | AP18: 97
C19: 17 | E19: 3 | F19: s | G19: ² | H19: – | I19: 12 | J19: s | K19: + | L19: 8 | M19: = | N19: 0 | P19: s | Q19: = | R19: 0.85 | S19: , | T19: 3.15 | U19: 48 | X19: 37 | Z19: 1 | AA19: s | AB19: ² | AC19: + | AD19: 16 | AE19: s | AF19: + | AG19: 16 | AH19: = | AI19: 0 | AK19: s | AL19: = | AM19: 14.93 | AN19: , | AO19: 1.07 | AP19: 192
C20: 18 | E20: 1 | F20: b | G20: ² | H20: – | I20: 5 | J20: b | K20: – | L20: 4 | M20: = | N20: 0 | P20: b | Q20: = | R20: 0.7 | S20: , | T20: 5.7 | U20: 41 | X20: 38 | Z20: 2 | AA20: b | AB20: ² | AC20: + | AD20: 17 | AE20: b | AF20: + | AG20: 9 | AH20: = | AI20: 0 | AK20: b | AL20: = | AM20: 7.93 | AN20: , | AO20: 0.57 | AP20: 217
C21: 19 | E21: 4 | F21: x | G21: ² | H21: – | I21: 21 | J21: x | K21: + | L21: 8 | M21: = | N21: 0 | P21: x | Q21: = | R21: 0.41 | S21: , | T21: 4.84 | U21: 313 | X21: 39 | Z21: 1 | AA21: q | AB21: ² | AC21: – | AD21: 12 | AE21: q | AF21: + | AG21: 5 | AH21: = | AI21: 0 | AK21: q | AL21: = | AM21: 0.43 | AN21: , | AO21: 11.57 | AP21: 124
C22: 20 | E22: 3 | F22: b | G22: ² | H22: + | I22: 8 | J22: b | K22: – | L22: 16 | M22: = | N22: 0 | P22: b | Q22: = | R22: 4 | S22: , | T22: 1.33 | U22: 256 | V22: * | X22: 40 | Z22: 1 | AA22: q | AB22: ² | AC22: – | AD22: 7 | AE22: q | AF22: – | AG22: 15 | AH22: = | AI22: 0 | AK22: q | AL22: = | AM22: 1.72 | AN22: , | AO22: 8.72 | AP22: 109

Sheet SYSTEM FORMULAE
A2: =IF(ROW()-1<=Worksheet!$B$4/2,ROW()-1,"") -> 1 | B2: =IF(C2<0,"–","") ->  | C2: =IF(Worksheet!$B$6,IF(RAND()<Worksheet!$B$7/100,1,IF(RAND()<0.3,RANDBETWEEN(-2,-1),RANDBETWEEN(1,RANDBETWEEN(3,9)))),IF(RAND()<Worksheet!$B$7/100,1,RANDBETWEEN(2,RANDBETWEEN(3,9)))) -> 3 | D2: =CHOOSE(RANDBETWEEN(1,15),"a","b","m","y","z","x","x","x","s","k","p","q","r","x","n") -> m | E2: ² | F2: =IF(G2>0,"+",IF(G2=0,"","–")) -> – | G2: =IF(C2*(J2-L2)<0,RANDBETWEEN(1,10)*(-1)^RANDBETWEEN(1,2),RANDBETWEEN(SQRT(4*C2*(J2-L2))+1,SQRT(4*C2*(J2-L2))+10))*(-1)^RANDBETWEEN(1,2) -> -7 | H2: =D2 -> m | I2: =IF(J2>0,"+",IF(J2=0,"","–")) -> – | J2: =RANDBETWEEN(1,20)*(-1)^RANDBETWEEN(1,2) -> -2 | K2: = | L2: =IF(Worksheet!$B$5,0,RANDBETWEEN(0,10)) -> 0 | N2: =D2 -> m | O2: = | P2: =ROUND((-G2-SQRT(G2^2-4*C2*(J2-L2)))/(2*C2),2) -> -0.26 | Q2: , | R2: =ROUND((-G2+SQRT(G2^2-4*C2*(J2-L2)))/(2*C2),2) -> 2.59 | S2: =G2^2-4*C2*(J2-L2) -> 73 | T2: =IF(INT(SQRT(S2))=SQRT(S2),"*","") ->  | V2: =MAX(A1:A40)+1 -> 21 | W2: =IF(X2<0,"–","") ->  | X2: =IF(Worksheet!$B$6,IF(RAND()<Worksheet!$B$7/100,1,IF(RAND()<0.3,RANDBETWEEN(-2,-1),RANDBETWEEN(1,RANDBETWEEN(3,9)))),IF(RAND()<Worksheet!$B$7/100,1,RANDBETWEEN(2,RANDBETWEEN(3,9)))) -> 2 | Y2: =CHOOSE(RANDBETWEEN(1,15),"a","b","m","y","z","x","x","x","s","k","p","q","r","x","n") -> q | Z2: ² | AA2: =IF(AB2>0,"+",IF(AB2=0,"","–")) -> + | AB2: =IF(X2*(AE2-AG2)<0,RANDBETWEEN(1,10)*(-1)^RANDBETWEEN(1,2),RANDBETWEEN(SQRT(4*X2*(AE2-AG2))+1,SQRT(4*X2*(AE2-AG2))+10))*(-1)^RANDBETWEEN(1,2) -> 16 | AC2: =Y2 -> q | AD2: =IF(AE2>0,"+",IF(AE2=0,"","–")) -> + | AE2: =RANDBETWEEN(1,20)*(-1)^RANDBETWEEN(1,2) -> 14 | AF2: = | AG2: =IF(Worksheet!$B$5,0,RANDBETWEEN(0,10)) -> 0 | AI2: =Y2 -> q | AJ2: = | AK2: =ROUND((-AB2-SQRT(AB2^2-4*X2*(AE2-AG2)))/(2*X2),2) -> -7 | AL2: , | AM2: =ROUND((-AB2+SQRT(AB2^2-4*X2*(AE2-AG2)))/(2*X2),2) -> -1 | AN2: =AB2^2-4*X2*(AE2-AG2) -> 144 | AO2: =IF(INT(SQRT(AN2))=SQRT(AN2),"*","") -> *
A3: =IF(ROW()-1<=Worksheet!$B$4/2,ROW()-1,"") -> 2 | B3: =IF(C3<0,"–","") ->  | C3: =IF(Worksheet!$B$6,IF(RAND()<Worksheet!$B$7/100,1,IF(RAND()<0.3,RANDBETWEEN(-2,-1),RANDBETWEEN(1,RANDBETWEEN(3,9)))),IF(RAND()<Worksheet!$B$7/100,1,RANDBETWEEN(2,RANDBETWEEN(3,9)))) -> 1 | D3: =CHOOSE(RANDBETWEEN(1,15),"a","b","m","y","z","x","x","x","s","k","p","q","r","x","n") -> s | E3: ² | F3: =IF(G3>0,"+",IF(G3=0,"","–")) -> + | G3: =IF(C3*(J3-L3)<0,RANDBETWEEN(1,10)*(-1)^RANDBETWEEN(1,2),RANDBETWEEN(SQRT(4*C3*(J3-L3))+1,SQRT(4*C3*(J3-L3))+10))*(-1)^RANDBETWEEN(1,2) -> 15 | H3: =D3 -> s | I3: =IF(J3>0,"+",IF(J3=0,"","–")) -> + | J3: =RANDBETWEEN(1,20)*(-1)^RANDBETWEEN(1,2) -> 13 | K3: = | L3: =IF(Worksheet!$B$5,0,RANDBETWEEN(0,10)) -> 0 | N3: =D3 -> s | O3: = | P3: =ROUND((-G3-SQRT(G3^2-4*C3*(J3-L3)))/(2*C3),2) -> -14.08 | Q3: , | R3: =ROUND((-G3+SQRT(G3^2-4*C3*(J3-L3)))/(2*C3),2) -> -0.92 | S3: 173 | V3: =IF(ROW()-1<=Worksheet!$B$4/2,V2+1,"") -> 22 | W3: =IF(X3<0,"–","") ->  | X3: =IF(Worksheet!$B$6,IF(RAND()<Worksheet!$B$7/100,1,IF(RAND()<0.3,RANDBETWEEN(-2,-1),RANDBETWEEN(1,RANDBETWEEN(3,9)))),IF(RAND()<Worksheet!$B$7/100,1,RANDBETWEEN(2,RANDBETWEEN(3,9)))) -> 3 | Y3: =CHOOSE(RANDBETWEEN(1,15),"a","b","m","y","z","x","x","x","s","k","p","q","r","x","n") -> b | Z3: ² | AA3: =IF(AB3>0,"+",IF(AB3=0,"","–")) -> + | AB3: =IF(X3*(AE3-AG3)<0,RANDBETWEEN(1,10)*(-1)^RANDBETWEEN(1,2),RANDBETWEEN(SQRT(4*X3*(AE3-AG3))+1,SQRT(4*X3*(AE3-AG3))+10))*(-1)^RANDBETWEEN(1,2) -> 4 | AC3: b | AD3: =IF(AE3>0,"+",IF(AE3=0,"","–")) -> – | AE3: =RANDBETWEEN(1,20)*(-1)^RANDBETWEEN(1,2) -> -14 | AF3: = | AG3: =IF(Worksheet!$B$5,0,RANDBETWEEN(0,10)) -> 0 | AI3: =Y3 -> b | AJ3: = | AK3: =ROUND((-AB3-SQRT(AB3^2-4*X3*(AE3-AG3)))/(2*X3),2) -> -2.93 | AL3: , | AM3: =ROUND((-AB3+SQRT(AB3^2-4*X3*(AE3-AG3)))/(2*X3),2) -> 1.59 | AN3: 184
A4: =IF(ROW()-1<=Worksheet!$B$4/2,ROW()-1,"") -> 3 | C4: =IF(Worksheet!$B$6,IF(RAND()<Worksheet!$B$7/100,1,IF(RAND()<0.3,RANDBETWEEN(-2,-1),RANDBETWEEN(1,RANDBETWEEN(3,9)))),IF(RAND()<Worksheet!$B$7/100,1,RANDBETWEEN(2,RANDBETWEEN(3,9)))) -> 4 | D4: x | E4: ² | F4: + | G4: 8 | H4: x | I4: – | J4: -2 | K4: = | L4: =IF(Worksheet!$B$5,0,RANDBETWEEN(0,10)) -> 0 | N4: x | O4: = | P4: -2.22 | Q4: , | R4: 0.22 | S4: 96 | V4: =IF(ROW()-1<=Worksheet!$B$4/2,V3+1,"") -> 23 | X4: =IF(Worksheet!$B$6,IF(RAND()<Worksheet!$B$7/100,1,IF(RAND()<0.3,RANDBETWEEN(-2,-1),RANDBETWEEN(1,RANDBETWEEN(3,9)))),IF(RAND()<Worksheet!$B$7/100,1,RANDBETWEEN(2,RANDBETWEEN(3,9)))) -> 5 | Y4: y | Z4: ² | AA4: – | AB4: -10 | AC4: y | AD4: – | AE4: -19 | AF4: = | AG4: =IF(Worksheet!$B$5,0,RANDBETWEEN(0,10)) -> 0 | AI4: y | AJ4: = | AK4: -1.19 | AL4: , | AM4: 3.19 | AN4: 480
A5: =IF(ROW()-1<=Worksheet!$B$4/2,ROW()-1,"") -> 4 | C5: =IF(Worksheet!$B$6,IF(RAND()<Worksheet!$B$7/100,1,IF(RAND()<0.3,RANDBETWEEN(-2,-1),RANDBETWEEN(1,RANDBETWEEN(3,9)))),IF(RAND()<Worksheet!$B$7/100,1,RANDBETWEEN(2,RANDBETWEEN(3,9)))) -> 5 | D5: p | E5: ² | F5: – | G5: -9 | H5: p | I5: – | J5: -5 | K5: = | L5: =IF(Worksheet!$B$5,0,RANDBETWEEN(0,10)) -> 0 | N5: p | O5: = | P5: -0.45 | Q5: , | R5: 2.25 | S5: 181 | V5: =IF(ROW()-1<=Worksheet!$B$4/2,V4+1,"") -> 24 | X5: =IF(Worksheet!$B$6,IF(RAND()<Worksheet!$B$7/100,1,IF(RAND()<0.3,RANDBETWEEN(-2,-1),RANDBETWEEN(1,RANDBETWEEN(3,9)))),IF(RAND()<Worksheet!$B$7/100,1,RANDBETWEEN(2,RANDBETWEEN(3,9)))) -> 1 | Y5: r | Z5: ² | AA5: + | AB5: 16 | AC5: r | AD5: + | AE5: 11 | AF5: = | AG5: =IF(Worksheet!$B$5,0,RANDBETWEEN(0,10)) -> 0 | AI5: r | AJ5: = | AK5: -15.28 | AL5: , | AM5: -0.72 | AN5: 212
A6: =IF(ROW()-1<=Worksheet!$B$4/2,ROW()-1,"") -> 5 | C6: =IF(Worksheet!$B$6,IF(RAND()<Worksheet!$B$7/100,1,IF(RAND()<0.3,RANDBETWEEN(-2,-1),RANDBETWEEN(1,RANDBETWEEN(3,9)))),IF(RAND()<Worksheet!$B$7/100,1,RANDBETWEEN(2,RANDBETWEEN(3,9)))) -> 1 | D6: s | E6: ² | F6: + | G6: 9 | H6: s | I6: + | J6: 2 | K6: = | L6: =IF(Worksheet!$B$5,0,RANDBETWEEN(0,10)) -> 0 | N6: s | O6: = | P6: -8.77 | Q6: , | R6: -0.23 | S6: 73 | V6: =IF(ROW()-1<=Worksheet!$B$4/2,V5+1,"") -> 25 | X6: =IF(Worksheet!$B$6,IF(RAND()<Worksheet!$B$7/100,1,IF(RAND()<0.3,RANDBETWEEN(-2,-1),RANDBETWEEN(1,RANDBETWEEN(3,9)))),IF(RAND()<Worksheet!$B$7/100,1,RANDBETWEEN(2,RANDBETWEEN(3,9)))) -> 1 | Y6: x | Z6: ² | AA6: + | AB6: 2 | AC6: x | AD6: – | AE6: -13 | AF6: = | AG6: =IF(Worksheet!$B$5,0,RANDBETWEEN(0,10)) -> 0 | AI6: x | AJ6: = | AK6: -4.74 | AL6: , | AM6: 2.74 | AN6: 56
A7: =IF(ROW()-1<=Worksheet!$B$4/2,ROW()-1,"") -> 6 | C7: =IF(Worksheet!$B$6,IF(RAND()<Worksheet!$B$7/100,1,IF(RAND()<0.3,RANDBETWEEN(-2,-1),RANDBETWEEN(1,RANDBETWEEN(3,9)))),IF(RAND()<Worksheet!$B$7/100,1,RANDBETWEEN(2,RANDBETWEEN(3,9)))) -> 4 | D7: x | E7: ² | F7: – | G7: -19 | H7: x | I7: + | J7: 14 | K7: = | L7: =IF(Worksheet!$B$5,0,RANDBETWEEN(0,10)) -> 0 | N7: x | O7: = | P7: 0.91 | Q7: , | R7: 3.84 | S7: 137 | V7: =IF(ROW()-1<=Worksheet!$B$4/2,V6+1,"") -> 26 | X7: =IF(Worksheet!$B$6,IF(RAND()<Worksheet!$B$7/100,1,IF(RAND()<0.3,RANDBETWEEN(-2,-1),RANDBETWEEN(1,RANDBETWEEN(3,9)))),IF(RAND()<Worksheet!$B$7/100,1,RANDBETWEEN(2,RANDBETWEEN(3,9)))) -> 4 | Y7: n | Z7: ² | AA7: – | AB7: -4 | AC7: n | AD7: – | AE7: -5 | AF7: = | AG7: =IF(Worksheet!$B$5,0,RANDBETWEEN(0,10)) -> 0 | AI7: n | AJ7: = | AK7: -0.72 | AL7: , | AM7: 1.72 | AN7: 96
A8: =IF(ROW()-1<=Worksheet!$B$4/2,ROW()-1,"") -> 7 | C8: =IF(Worksheet!$B$6,IF(RAND()<Worksheet!$B$7/100,1,IF(RAND()<0.3,RANDBETWEEN(-2,-1),RANDBETWEEN(1,RANDBETWEEN(3,9)))),IF(RAND()<Worksheet!$B$7/100,1,RANDBETWEEN(2,RANDBETWEEN(3,9)))) -> 3 | D8: x | E8: ² | F8: – | G8: -17 | H8: x | I8: + | J8: 16 | K8: = | L8: =IF(Worksheet!$B$5,0,RANDBETWEEN(0,10)) -> 0 | N8: x | O8: = | P8: 1.19 | Q8: , | R8: 4.47 | S8: 97 | V8: =IF(ROW()-1<=Worksheet!$B$4/2,V7+1,"") -> 27 | X8: =IF(Worksheet!$B$6,IF(RAND()<Worksheet!$B$7/100,1,IF(RAND()<0.3,RANDBETWEEN(-2,-1),RANDBETWEEN(1,RANDBETWEEN(3,9)))),IF(RAND()<Worksheet!$B$7/100,1,RANDBETWEEN(2,RANDBETWEEN(3,9)))) -> 1 | Y8: p | Z8: ² | AA8: – | AB8: -10 | AC8: p | AD8: – | AE8: -3 | AF8: = | AG8: =IF(Worksheet!$B$5,0,RANDBETWEEN(0,10)) -> 0 | AI8: p | AJ8: = | AK8: -0.29 | AL8: , | AM8: 10.29 | AN8: 112
A9: =IF(ROW()-1<=Worksheet!$B$4/2,ROW()-1,"") -> 8 | C9: =IF(Worksheet!$B$6,IF(RAND()<Worksheet!$B$7/100,1,IF(RAND()<0.3,RANDBETWEEN(-2,-1),RANDBETWEEN(1,RANDBETWEEN(3,9)))),IF(RAND()<Worksheet!$B$7/100,1,RANDBETWEEN(2,RANDBETWEEN(3,9)))) -> 2 | D9: x | E9: ² | F9: – | G9: -9 | H9: x | I9: – | J9: -15 | K9: = | L9: =IF(Worksheet!$B$5,0,RANDBETWEEN(0,10)) -> 0 | N9: x | O9: = | P9: -1.29 | Q9: , | R9: 5.79 | S9: 201 | V9: =IF(ROW()-1<=Worksheet!$B$4/2,V8+1,"") -> 28 | X9: =IF(Worksheet!$B$6,IF(RAND()<Worksheet!$B$7/100,1,IF(RAND()<0.3,RANDBETWEEN(-2,-1),RANDBETWEEN(1,RANDBETWEEN(3,9)))),IF(RAND()<Worksheet!$B$7/100,1,RANDBETWEEN(2,RANDBETWEEN(3,9)))) -> 4 | Y9: x | Z9: ² | AA9: + | AB9: 3 | AC9: x | AD9: – | AE9: -19 | AF9: = | AG9: =IF(Worksheet!$B$5,0,RANDBETWEEN(0,10)) -> 0 | AI9: x | AJ9: = | AK9: -2.59 | AL9: , | AM9: 1.84 | AN9: 313
A10: =IF(ROW()-1<=Worksheet!$B$4/2,ROW()-1,"") -> 9 | C10: =IF(Worksheet!$B$6,IF(RAND()<Worksheet!$B$7/100,1,IF(RAND()<0.3,RANDBETWEEN(-2,-1),RANDBETWEEN(1,RANDBETWEEN(3,9)))),IF(RAND()<Worksheet!$B$7/100,1,RANDBETWEEN(2,RANDBETWEEN(3,9)))) -> 1 | D10: y | E10: ² | F10: + | G10: 9 | H10: y | I10: + | J10: 4 | K10: = | L10: =IF(Worksheet!$B$5,0,RANDBETWEEN(0,10)) -> 0 | N10: y | O10: = | P10: -8.53 | Q10: , | R10: -0.47 | S10: 65 | V10: =IF(ROW()-1<=Worksheet!$B$4/2,V9+1,"") -> 29 | X10: =IF(Worksheet!$B$6,IF(RAND()<Worksheet!$B$7/100,1,IF(RAND()<0.3,RANDBETWEEN(-2,-1),RANDBETWEEN(1,RANDBETWEEN(3,9)))),IF(RAND()<Worksheet!$B$7/100,1,RANDBETWEEN(2,RANDBETWEEN(3,9)))) -> 2 | Y10: s | Z10: ² | AA10: – | AB10: -12 | AC10: s | AD10: + | AE10: 9 | AF10: = | AG10: =IF(Worksheet!$B$5,0,RANDBETWEEN(0,10)) -> 0 | AI10: s | AJ10: = | AK10: 0.88 | AL10: , | AM10: 5.12 | AN10: 72
A11: =IF(ROW()-1<=Worksheet!$B$4/2,ROW()-1,"") -> 10 | C11: =IF(Worksheet!$B$6,IF(RAND()<Worksheet!$B$7/100,1,IF(RAND()<0.3,RANDBETWEEN(-2,-1),RANDBETWEEN(1,RANDBETWEEN(3,9)))),IF(RAND()<Worksheet!$B$7/100,1,RANDBETWEEN(2,RANDBETWEEN(3,9)))) -> 1 | D11: m | E11: ² | F11: + | G11: =IF(C11*(J11-L11)<0,RANDBETWEEN(1,10)*(-1)^RANDBETWEEN(1,2),RANDBETWEEN(SQRT(4*C11*(J11-L11))+1,SQRT(4*C11*(J11-L11))+10))*(-1)^RANDBETWEEN(1,2) -> 10 | H11: =D11 -> m | I11: – | J11: -12 | K11: = | L11: =IF(Worksheet!$B$5,0,RANDBETWEEN(0,10)) -> 0 | N11: =D11 -> m | O11: = | P11: =ROUND((-G11-SQRT(G11^2-4*C11*(J11-L11)))/(2*C11),2) -> -11.08 | Q11: , | R11: =ROUND((-G11+SQRT(G11^2-4*C11*(J11-L11)))/(2*C11),2) -> 1.08 | S11: 148 | T11: =IF(INT(SQRT(S11))=SQRT(S11),"*","") ->  | V11: =IF(ROW()-1<=Worksheet!$B$4/2,V10+1,"") -> 30 | X11: =IF(Worksheet!$B$6,IF(RAND()<Worksheet!$B$7/100,1,IF(RAND()<0.3,RANDBETWEEN(-2,-1),RANDBETWEEN(1,RANDBETWEEN(3,9)))),IF(RAND()<Worksheet!$B$7/100,1,RANDBETWEEN(2,RANDBETWEEN(3,9)))) -> 3 | Y11: x | Z11: ² | AA11: – | AB11: =IF(X11*(AE11-AG11)<0,RANDBETWEEN(1,10)*(-1)^RANDBETWEEN(1,2),RANDBETWEEN(SQRT(4*X11*(AE11-AG11))+1,SQRT(4*X11*(AE11-AG11))+10))*(-1)^RANDBETWEEN(1,2) -> -9 | AC11: =Y11 -> x | AD11: – | AE11: -5 | AF11: = | AG11: =IF(Worksheet!$B$5,0,RANDBETWEEN(0,10)) -> 0 | AI11: =Y11 -> x | AJ11: = | AK11: =ROUND((-AB11-SQRT(AB11^2-4*X11*(AE11-AG11)))/(2*X11),2) -> -0.48 | AL11: , | AM11: =ROUND((-AB11+SQRT(AB11^2-4*X11*(AE11-AG11)))/(2*X11),2) -> 3.48 | AN11: 141
A12: =IF(ROW()-1<=Worksheet!$B$4/2,ROW()-1,"") -> 11 | C12: =IF(Worksheet!$B$6,IF(RAND()<Worksheet!$B$7/100,1,IF(RAND()<0.3,RANDBETWEEN(-2,-1),RANDBETWEEN(1,RANDBETWEEN(3,9)))),IF(RAND()<Worksheet!$B$7/100,1,RANDBETWEEN(2,RANDBETWEEN(3,9)))) -> 5 | D12: s | E12: ² | F12: + | G12: =IF(C12*(J12-L12)<0,RANDBETWEEN(1,10)*(-1)^RANDBETWEEN(1,2),RANDBETWEEN(SQRT(4*C12*(J12-L12))+1,SQRT(4*C12*(J12-L12))+10))*(-1)^RANDBETWEEN(1,2) -> 6 | H12: =D12 -> s | I12: – | J12: -15 | K12: = | L12: =IF(Worksheet!$B$5,0,RANDBETWEEN(0,10)) -> 0 | N12: =D12 -> s | O12: = | P12: =ROUND((-G12-SQRT(G12^2-4*C12*(J12-L12)))/(2*C12),2) -> -2.43 | Q12: , | R12: =ROUND((-G12+SQRT(G12^2-4*C12*(J12-L12)))/(2*C12),2) -> 1.23 | S12: 336 | V12: =IF(ROW()-1<=Worksheet!$B$4/2,V11+1,"") -> 31 | X12: =IF(Worksheet!$B$6,IF(RAND()<Worksheet!$B$7/100,1,IF(RAND()<0.3,RANDBETWEEN(-2,-1),RANDBETWEEN(1,RANDBETWEEN(3,9)))),IF(RAND()<Worksheet!$B$7/100,1,RANDBETWEEN(2,RANDBETWEEN(3,9)))) -> 1 | Y12: s | Z12: ² | AA12: – | AB12: =IF(X12*(AE12-AG12)<0,RANDBETWEEN(1,10)*(-1)^RANDBETWEEN(1,2),RANDBETWEEN(SQRT(4*X12*(AE12-AG12))+1,SQRT(4*X12*(AE12-AG12))+10))*(-1)^RANDBETWEEN(1,2) -> -16 | AC12: =Y12 -> s | AD12: + | AE12: 9 | AF12: = | AG12: =IF(Worksheet!$B$5,0,RANDBETWEEN(0,10)) -> 0 | AI12: =Y12 -> s | AJ12: = | AK12: =ROUND((-AB12-SQRT(AB12^2-4*X12*(AE12-AG12)))/(2*X12),2) -> 0.58 | AL12: , | AM12: =ROUND((-AB12+SQRT(AB12^2-4*X12*(AE12-AG12)))/(2*X12),2) -> 15.42 | AN12: 220
A13: =IF(ROW()-1<=Worksheet!$B$4/2,ROW()-1,"") -> 12 | C13: =IF(Worksheet!$B$6,IF(RAND()<Worksheet!$B$7/100,1,IF(RAND()<0.3,RANDBETWEEN(-2,-1),RANDBETWEEN(1,RANDBETWEEN(3,9)))),IF(RAND()<Worksheet!$B$7/100,1,RANDBETWEEN(2,RANDBETWEEN(3,9)))) -> 4 | D13: x | E13: ² | F13: + | G13: =IF(C13*(J13-L13)<0,RANDBETWEEN(1,10)*(-1)^RANDBETWEEN(1,2),RANDBETWEEN(SQRT(4*C13*(J13-L13))+1,SQRT(4*C13*(J13-L13))+10))*(-1)^RANDBETWEEN(1,2) -> 2 | H13: =D13 -> x | I13: – | J13: -7 | K13: = | L13: =IF(Worksheet!$B$5,0,RANDBETWEEN(0,10)) -> 0 | N13: =D13 -> x | O13: = | P13: =ROUND((-G13-SQRT(G13^2-4*C13*(J13-L13)))/(2*C13),2) -> -1.6 | Q13: , | R13: =ROUND((-G13+SQRT(G13^2-4*C13*(J13-L13)))/(2*C13),2) -> 1.1 | S13: 116 | V13: =IF(ROW()-1<=Worksheet!$B$4/2,V12+1,"") -> 32 | X13: =IF(Worksheet!$B$6,IF(RAND()<Worksheet!$B$7/100,1,IF(RAND()<0.3,RANDBETWEEN(-2,-1),RANDBETWEEN(1,RANDBETWEEN(3,9)))),IF(RAND()<Worksheet!$B$7/100,1,RANDBETWEEN(2,RANDBETWEEN(3,9)))) -> 1 | Y13: k | Z13: ² | AA13: – | AB13: =IF(X13*(AE13-AG13)<0,RANDBETWEEN(1,10)*(-1)^RANDBETWEEN(1,2),RANDBETWEEN(SQRT(4*X13*(AE13-AG13))+1,SQRT(4*X13*(AE13-AG13))+10))*(-1)^RANDBETWEEN(1,2) -> -10 | AC13: =Y13 -> k | AD13: + | AE13: 11 | AF13: = | AG13: =IF(Worksheet!$B$5,0,RANDBETWEEN(0,10)) -> 0 | AI13: =Y13 -> k | AJ13: = | AK13: =ROUND((-AB13-SQRT(AB13^2-4*X13*(AE13-AG13)))/(2*X13),2) -> 1.26 | AL13: , | AM13: =ROUND((-AB13+SQRT(AB13^2-4*X13*(AE13-AG13)))/(2*X13),2) -> 8.74 | AN13: 56
A14: =IF(ROW()-1<=Worksheet!$B$4/2,ROW()-1,"") -> 13 | C14: =IF(Worksheet!$B$6,IF(RAND()<Worksheet!$B$7/100,1,IF(RAND()<0.3,RANDBETWEEN(-2,-1),RANDBETWEEN(1,RANDBETWEEN(3,9)))),IF(RAND()<Worksheet!$B$7/100,1,RANDBETWEEN(2,RANDBETWEEN(3,9)))) -> 3 | D14: q | E14: ² | F14: + | G14: =IF(C14*(J14-L14)<0,RANDBETWEEN(1,10)*(-1)^RANDBETWEEN(1,2),RANDBETWEEN(SQRT(4*C14*(J14-L14))+1,SQRT(4*C14*(J14-L14))+10))*(-1)^RANDBETWEEN(1,2) -> 9 | H14: =D14 -> q | I14: – | J14: -2 | K14: = | L14: =IF(Worksheet!$B$5,0,RANDBETWEEN(0,10)) -> 0 | N14: =D14 -> q | O14: = | P14: =ROUND((-G14-SQRT(G14^2-4*C14*(J14-L14)))/(2*C14),2) -> -3.21 | Q14: , | R14: =ROUND((-G14+SQRT(G14^2-4*C14*(J14-L14)))/(2*C14),2) -> 0.21 | S14: =G14^2-4*C14*(J14-L14) -> 105 | V14: =IF(ROW()-1<=Worksheet!$B$4/2,V13+1,"") -> 33 | X14: =IF(Worksheet!$B$6,IF(RAND()<Worksheet!$B$7/100,1,IF(RAND()<0.3,RANDBETWEEN(-2,-1),RANDBETWEEN(1,RANDBETWEEN(3,9)))),IF(RAND()<Worksheet!$B$7/100,1,RANDBETWEEN(2,RANDBETWEEN(3,9)))) -> 4 | Y14: q | Z14: ² | AA14: + | AB14: =IF(X14*(AE14-AG14)<0,RANDBETWEEN(1,10)*(-1)^RANDBETWEEN(1,2),RANDBETWEEN(SQRT(4*X14*(AE14-AG14))+1,SQRT(4*X14*(AE14-AG14))+10))*(-1)^RANDBETWEEN(1,2) -> 4 | AC14: =Y14 -> q | AD14: – | AE14: -16 | AF14: = | AG14: =IF(Worksheet!$B$5,0,RANDBETWEEN(0,10)) -> 0 | AI14: =Y14 -> q | AJ14: = | AK14: =ROUND((-AB14-SQRT(AB14^2-4*X14*(AE14-AG14)))/(2*X14),2) -> -2.56 | AL14: , | AM14: =ROUND((-AB14+SQRT(AB14^2-4*X14*(AE14-AG14)))/(2*X14),2) -> 1.56 | AN14: =AB14^2-4*X14*(AE14-AG14) -> 272
A15: =IF(ROW()-1<=Worksheet!$B$4/2,ROW()-1,"") -> 14 | C15: =IF(Worksheet!$B$6,IF(RAND()<Worksheet!$B$7/100,1,IF(RAND()<0.3,RANDBETWEEN(-2,-1),RANDBETWEEN(1,RANDBETWEEN(3,9)))),IF(RAND()<Worksheet!$B$7/100,1,RANDBETWEEN(2,RANDBETWEEN(3,9)))) -> 1 | D15: p | E15: ² | F15: + | G15: 10 | H15: p | I15: + | J15: 15 | K15: = | L15: =IF(Worksheet!$B$5,0,RANDBETWEEN(0,10)) -> 0 | N15: p | O15: = | P15: -8.16 | Q15: , | R15: -1.84 | S15: 40 | V15: =IF(ROW()-1<=Worksheet!$B$4/2,V14+1,"") -> 34 | X15: =IF(Worksheet!$B$6,IF(RAND()<Worksheet!$B$7/100,1,IF(RAND()<0.3,RANDBETWEEN(-2,-1),RANDBETWEEN(1,RANDBETWEEN(3,9)))),IF(RAND()<Worksheet!$B$7/100,1,RANDBETWEEN(2,RANDBETWEEN(3,9)))) -> 4 | Y15: n | Z15: ² | AA15: – | AB15: -9 | AC15: n | AD15: – | AE15: -9 | AF15: = | AG15: =IF(Worksheet!$B$5,0,RANDBETWEEN(0,10)) -> 0 | AI15: n | AJ15: = | AK15: -0.75 | AL15: , | AM15: 3 | AN15: 225
A16: =IF(ROW()-1<=Worksheet!$B$4/2,ROW()-1,"") -> 15 | C16: =IF(Worksheet!$B$6,IF(RAND()<Worksheet!$B$7/100,1,IF(RAND()<0.3,RANDBETWEEN(-2,-1),RANDBETWEEN(1,RANDBETWEEN(3,9)))),IF(RAND()<Worksheet!$B$7/100,1,RANDBETWEEN(2,RANDBETWEEN(3,9)))) -> 1 | D16: n | E16: ² | F16: + | G16: 10 | H16: n | I16: – | J16: -7 | K16: = | L16: =IF(Worksheet!$B$5,0,RANDBETWEEN(0,10)) -> 0 | N16: n | O16: = | P16: -10.66 | Q16: , | R16: 0.66 | S16: 128 | V16: =IF(ROW()-1<=Worksheet!$B$4/2,V15+1,"") -> 35 | X16: =IF(Worksheet!$B$6,IF(RAND()<Worksheet!$B$7/100,1,IF(RAND()<0.3,RANDBETWEEN(-2,-1),RANDBETWEEN(1,RANDBETWEEN(3,9)))),IF(RAND()<Worksheet!$B$7/100,1,RANDBETWEEN(2,RANDBETWEEN(3,9)))) -> 4 | Y16: a | Z16: ² | AA16: – | AB16: -3 | AC16: a | AD16: – | AE16: -2 | AF16: = | AG16: =IF(Worksheet!$B$5,0,RANDBETWEEN(0,10)) -> 0 | AI16: a | AJ16: = | AK16: -0.43 | AL16: , | AM16: 1.18 | AN16: 41
A17: =IF(ROW()-1<=Worksheet!$B$4/2,ROW()-1,"") -> 16 | C17: =IF(Worksheet!$B$6,IF(RAND()<Worksheet!$B$7/100,1,IF(RAND()<0.3,RANDBETWEEN(-2,-1),RANDBETWEEN(1,RANDBETWEEN(3,9)))),IF(RAND()<Worksheet!$B$7/100,1,RANDBETWEEN(2,RANDBETWEEN(3,9)))) -> 2 | D17: s | E17: ² | F17: – | G17: -16 | H17: s | I17: + | J17: 8 | K17: = | L17: =IF(Worksheet!$B$5,0,RANDBETWEEN(0,10)) -> 0 | N17: s | O17: = | P17: 0.54 | Q17: , | R17: 7.46 | S17: 192 | V17: =IF(ROW()-1<=Worksheet!$B$4/2,V16+1,"") -> 36 | X17: =IF(Worksheet!$B$6,IF(RAND()<Worksheet!$B$7/100,1,IF(RAND()<0.3,RANDBETWEEN(-2,-1),RANDBETWEEN(1,RANDBETWEEN(3,9)))),IF(RAND()<Worksheet!$B$7/100,1,RANDBETWEEN(2,RANDBETWEEN(3,9)))) -> 1 | Y17: s | Z17: ² | AA17: + | AB17: 7 | AC17: s | AD17: – | AE17: -5 | AF17: = | AG17: =IF(Worksheet!$B$5,0,RANDBETWEEN(0,10)) -> 0 | AI17: s | AJ17: = | AK17: -7.65 | AL17: , | AM17: 0.65 | AN17: 69
A18: =IF(ROW()-1<=Worksheet!$B$4/2,ROW()-1,"") -> 17 | C18: =IF(Worksheet!$B$6,IF(RAND()<Worksheet!$B$7/100,1,IF(RAND()<0.3,RANDBETWEEN(-2,-1),RANDBETWEEN(1,RANDBETWEEN(3,9)))),IF(RAND()<Worksheet!$B$7/100,1,RANDBETWEEN(2,RANDBETWEEN(3,9)))) -> 2 | D18: x | E18: ² | F18: – | G18: -5 | H18: x | I18: – | J18: -5 | K18: = | L18: =IF(Worksheet!$B$5,0,RANDBETWEEN(0,10)) -> 0 | N18: x | O18: = | P18: -0.77 | Q18: , | R18: 3.27 | S18: 65 | V18: =IF(ROW()-1<=Worksheet!$B$4/2,V17+1,"") -> 37 | X18: =IF(Worksheet!$B$6,IF(RAND()<Worksheet!$B$7/100,1,IF(RAND()<0.3,RANDBETWEEN(-2,-1),RANDBETWEEN(1,RANDBETWEEN(3,9)))),IF(RAND()<Worksheet!$B$7/100,1,RANDBETWEEN(2,RANDBETWEEN(3,9)))) -> 2 | Y18: y | Z18: ² | AA18: – | AB18: -9 | AC18: y | AD18: – | AE18: -20 | AF18: = | AG18: =IF(Worksheet!$B$5,0,RANDBETWEEN(0,10)) -> 0 | AI18: y | AJ18: = | AK18: -1.63 | AL18: , | AM18: 6.13 | AN18: 241
A19: =IF(ROW()-1<=Worksheet!$B$4/2,ROW()-1,"") -> 18 | C19: =IF(Worksheet!$B$6,IF(RAND()<Worksheet!$B$7/100,1,IF(RAND()<0.3,RANDBETWEEN(-2,-1),RANDBETWEEN(1,RANDBETWEEN(3,9)))),IF(RAND()<Worksheet!$B$7/100,1,RANDBETWEEN(2,RANDBETWEEN(3,9)))) -> 1 | D19: b | E19: ² | F19: – | G19: -3 | H19: b | I19: – | J19: -2 | K19: = | L19: =IF(Worksheet!$B$5,0,RANDBETWEEN(0,10)) -> 0 | N19: b | O19: = | P19: -0.56 | Q19: , | R19: 3.56 | S19: 17 | V19: =IF(ROW()-1<=Worksheet!$B$4/2,V18+1,"") -> 38 | X19: =IF(Worksheet!$B$6,IF(RAND()<Worksheet!$B$7/100,1,IF(RAND()<0.3,RANDBETWEEN(-2,-1),RANDBETWEEN(1,RANDBETWEEN(3,9)))),IF(RAND()<Worksheet!$B$7/100,1,RANDBETWEEN(2,RANDBETWEEN(3,9)))) -> 1 | Y19: x | Z19: ² | AA19: – | AB19: -10 | AC19: x | AD19: + | AE19: 9 | AF19: = | AG19: =IF(Worksheet!$B$5,0,RANDBETWEEN(0,10)) -> 0 | AI19: x | AJ19: = | AK19: 1 | AL19: , | AM19: 9 | AN19: 64
A20: =IF(ROW()-1<=Worksheet!$B$4/2,ROW()-1,"") -> 19 | C20: =IF(Worksheet!$B$6,IF(RAND()<Worksheet!$B$7/100,1,IF(RAND()<0.3,RANDBETWEEN(-2,-1),RANDBETWEEN(1,RANDBETWEEN(3,9)))),IF(RAND()<Worksheet!$B$7/100,1,RANDBETWEEN(2,RANDBETWEEN(3,9)))) -> 1 | D20: y | E20: ² | F20: – | G20: -16 | H20: y | I20: + | J20: 15 | K20: = | L20: =IF(Worksheet!$B$5,0,RANDBETWEEN(0,10)) -> 0 | N20: y | O20: = | P20: 1 | Q20: , | R20: 15 | S20: 196 | T20: * | V20: =IF(ROW()-1<=Worksheet!$B$4/2,V19+1,"") -> 39 | X20: =IF(Worksheet!$B$6,IF(RAND()<Worksheet!$B$7/100,1,IF(RAND()<0.3,RANDBETWEEN(-2,-1),RANDBETWEEN(1,RANDBETWEEN(3,9)))),IF(RAND()<Worksheet!$B$7/100,1,RANDBETWEEN(2,RANDBETWEEN(3,9)))) -> 2 | Y20: a | Z20: ² | AA20: – | AB20: -19 | AC20: a | AD20: + | AE20: 16 | AF20: = | AG20: =IF(Worksheet!$B$5,0,RANDBETWEEN(0,10)) -> 0 | AI20: a | AJ20: = | AK20: 0.93 | AL20: , | AM20: 8.57 | AN20: 233
A21: =IF(ROW()-1<=Worksheet!$B$4/2,ROW()-1,"") -> 20 | C21: =IF(Worksheet!$B$6,IF(RAND()<Worksheet!$B$7/100,1,IF(RAND()<0.3,RANDBETWEEN(-2,-1),RANDBETWEEN(1,RANDBETWEEN(3,9)))),IF(RAND()<Worksheet!$B$7/100,1,RANDBETWEEN(2,RANDBETWEEN(3,9)))) -> 3 | D21: x | E21: ² | F21: + | G21: =IF(C21*(J21-L21)<0,RANDBETWEEN(1,10)*(-1)^RANDBETWEEN(1,2),RANDBETWEEN(SQRT(4*C21*(J21-L21))+1,SQRT(4*C21*(J21-L21))+10))*(-1)^RANDBETWEEN(1,2) -> 8 | H21: =D21 -> x | I21: + | J21: 2 | K21: = | L21: =IF(Worksheet!$B$5,0,RANDBETWEEN(0,10)) -> 0 | N21: =D21 -> x | O21: = | P21: =ROUND((-G21-SQRT(G21^2-4*C21*(J21-L21)))/(2*C21),2) -> -2.39 | Q21: , | R21: =ROUND((-G21+SQRT(G21^2-4*C21*(J21-L21)))/(2*C21),2) -> -0.28 | S21: =G21^2-4*C21*(J21-L21) -> 40 | V21: =IF(ROW()-1<=Worksheet!$B$4/2,V20+1,"") -> 40 | X21: =IF(Worksheet!$B$6,IF(RAND()<Worksheet!$B$7/100,1,IF(RAND()<0.3,RANDBETWEEN(-2,-1),RANDBETWEEN(1,RANDBETWEEN(3,9)))),IF(RAND()<Worksheet!$B$7/100,1,RANDBETWEEN(2,RANDBETWEEN(3,9)))) -> 1 | Y21: q | Z21: ² | AA21: – | AB21: =IF(X21*(AE21-AG21)<0,RANDBETWEEN(1,10)*(-1)^RANDBETWEEN(1,2),RANDBETWEEN(SQRT(4*X21*(AE21-AG21))+1,SQRT(4*X21*(AE21-AG21))+10))*(-1)^RANDBETWEEN(1,2) -> -6 | AC21: =Y21 -> q | AD21: – | AE21: -8 | AF21: = | AG21: =IF(Worksheet!$B$5,0,RANDBETWEEN(0,10)) -> 0 | AI21: =Y21 -> q | AJ21: = | AK21: =ROUND((-AB21-SQRT(AB21^2-4*X21*(AE21-AG21)))/(2*X21),2) -> -1.12 | AL21: , | AM21: =ROUND((-AB21+SQRT(AB21^2-4*X21*(AE21-AG21)))/(2*X21),2) -> 7.12 | AN21: =AB21^2-4*X21*(AE21-AG21) -> 68
